fUST/lending_fUST_20241126
["ID","MTS","AMOUNT","RATE_DAILY","PERIOD"]
[343410647,1732619474244,-407.65769935,0.00026185,2]
[343410648,1732619474253,-500.0,0.00026185,2]
[343410649,1732619474262,-500.0,0.00026185,2]
[343410650,1732619474272,-500.0,0.00026185,2]
[343410651,1732619474281,-500.0,0.00026185,2]
[343410652,1732619474290,-500.0,0.00026185,2]
[343410653,1732619474300,-500.0,0.00026185,2]
[343410654,1732619474309,-500.0,0.00026185,2]
[343410655,1732619474318,-500.0,0.00026185,2]
[343410656,1732619474327,-500.0,0.00026185,2]
[343410657,1732619474336,-500.0,0.00026185,2]
[343410658,1732619474346,-500.0,0.00026185,2]
[343410659,1732619474355,-500.0,0.00026185,2]
[343410660,1732619474365,-500.0,0.00026185,2]
[343410661,1732619474375,-576.82330495,0.00026185,2]
[343410662,1732619474384,-500.0,0.00026185,2]
[343410663,1732619474393,-500.0,0.00026185,2]
[343410664,1732619474403,-500.0,0.00026185,2]
[343410665,1732619474412,-500.0,0.00026185,2]
[343410666,1732619474421,-500.0,0.00026185,2]
[343410667,1732619474430,-426.25685748,0.00026185,2]
[343410668,1732619474440,-500.0,0.00026185,2]
[343410669,1732619474449,-212.7894965,0.00028795,30]
[343410670,1732619474458,-304.8206204,0.00028795,30]
[343410671,1732619474468,-1553.83,0.00029305,10]
[343410672,1732619474482,-17142.96704373,0.00029315,2]
[343410673,1732619474491,-500.0,0.00029315,2]
[343410674,1732619474500,-644.04104848,0.00029315,2]
[343410675,1732619474509,-2592.34584945,0.00029315,2]
[343410676,1732619474521,-22973.70415055,0.00029315,2]
[343410677,1732619474530,-502.65193505,0.00029315,2]
[343410678,1732619474539,-25566.05,0.00029315,2]
[343410679,1732619474548,-25566.05,0.00029315,2]
[343410680,1732619474558,-25566.07050257,0.00029315,2]
[343410681,1732619474568,-500.0,0.00029315,2]
[343410682,1732619474577,-500.0,0.00029315,2]
[343410683,1732619474587,-500.0,0.00029315,2]
[343410684,1732619474596,-500.0,0.00029315,2]
[343410685,1732619474605,-500.0,0.00029315,2]
[343410686,1732619474614,-500.0,0.00029315,2]
[343410687,1732619474623,-500.0,0.00029315,2]
[343410688,1732619474633,-500.0,0.00029315,2]
[343410689,1732619474642,-500.0,0.00029315,2]
[343410690,1732619474651,-500.0,0.00029315,2]
[343410691,1732619474660,-500.0,0.00029315,2]
[343410692,1732619474670,-500.0,0.00029315,2]
[343410693,1732619474679,-500.0,0.00029315,2]
[343410694,1732619474689,-500.0,0.00029315,2]
[343410695,1732619474699,-500.0,0.00029315,2]
[343410696,1732619474708,-502.44671074,0.00029315,2]
[343410697,1732619474717,-196.45189082,0.00029315,2]
[343410698,1732619474730,-500.0,0.00029315,2]
[343410699,1732619474739,-500.0,0.00029315,2]
[343410700,1732619474749,-500.0,0.00029315,2]
[343410701,1732619474758,-500.0,0.00029315,2]
[343410702,1732619474767,-500.0,0.00029315,2]
[343410703,1732619474776,-500.0,0.00029315,2]
[343410704,1732619474786,-129.23022092,0.00029315,2]
[343410705,1732619474798,-370.76977908,0.00029315,2]
[343410706,1732619474809,-500.0,0.00029315,2]
[343410707,1732619474818,-507.15077382,0.00029315,2]
[343410708,1732619474828,-616.65699785,0.00029315,2]
[343410709,1732619474837,-500.0,0.00029315,2]
[343410710,1732619474846,-500.0,0.00029315,2]
[343410711,1732619474856,-500.0,0.00029315,2]
[343410712,1732619474865,-500.0,0.00029315,2]
[343410713,1732619474965,-500.0,0.00029373,5]
[343410714,1732619474977,-500.0,0.00029373,5]
[343410715,1732619474988,-500.0,0.00029373,5]
[343410716,1732619474998,-504.40584665,0.00029373,5]
[343410717,1732619475008,-500.71588841,0.00029373,5]
[343410718,1732619475017,-500.0,0.00029373,5]
[343410719,1732619475027,-151.0,0.000294,7]
[343410720,1732619475037,-151.0,0.000294,7]
[343410721,1732619475046,-8508.27638453,0.000294,7]
[343410722,1732619475055,-151.0,0.000294,7]
[343410723,1732619475065,-151.982572,0.000294,7]
[343410724,1732619475075,-186.0,0.000294,2]
[343410725,1732619475084,-500.0,0.00029416,2]
[343410726,1732619475093,-1010.91161894,0.00029423,2]
[343410727,1732619475103,-248.386221,0.00029478,7]
[343410728,1732619475116,-248.386221,0.00029478,7]
[343410729,1732619475136,-153.421165,0.00029478,7]
[343410730,1732619475155,-300.0,0.000295,14]
[343410731,1732619475177,-202.0,0.000295,26]
[343410732,1732619475199,-500.0,0.00029513,2]
[343410733,1732619475225,-922.06196426,0.00029513,2]
[343410734,1732619475250,-2000.0,0.0002952,5]
[343410735,1732619475272,-646.40775,0.0002952,7]
[343410736,1732619475293,-646.40775,0.0002952,7]
[343410737,1732619475319,-151.0,0.0002952,7]
[343410738,1732619475341,-500.0,0.00029522,11]
[343410739,1732619475364,-500.0,0.00029525,11]
[343410740,1732619475385,-180.70987548,0.00029551,2]
[343410741,1732619475394,-4047.33721713,0.00029551,2]
[343410742,1732619475404,-214.335249,0.00029551,7]
[343410743,1732619475413,-214.335249,0.00029551,7]
[343410744,1732619475423,-1225.343285,0.00029551,7]
[343410745,1732619475432,-1225.343285,0.00029551,7]
[343410746,1732619475441,-620.25490683,0.00029551,7]
[343410747,1732619475458,-1632.93256775,0.00029551,7]
[343410748,1732619475472,-3639.63912942,0.00029551,7]
[343410749,1732619475483,-221.65626289,0.00029551,7]
[343410750,1732619475612,-500.0,0.00026185,2]
[343410751,1732619475622,-151.0,0.00029315,7]
[343410752,1732619475633,-151.0,0.00029315,7]
[343410753,1732619475643,-500.0,0.00029315,2]
[343410754,1732619475654,-500.0,0.00029315,2]
[343410755,1732619475663,-500.0,0.00029315,2]
[343410756,1732619475673,-151.0,0.00029315,7]
[343410757,1732619475683,-500.0,0.00029315,2]
[343410758,1732619475692,-523.45874043,0.00029315,2]
[343410759,1732619475702,-500.0,0.00029315,2]
[343410760,1732619475711,-151.0,0.00029315,7]
[343410761,1732619475724,-500.0,0.00029315,2]
[343410762,1732619475734,-501.48719661,0.00029315,2]
[343410763,1732619475744,-217.101304,0.00029315,7]
[343410764,1732619475754,-3907.95275896,0.00029551,7]
[343410765,1732619475766,-1174.5,0.00029551,7]
[343410766,1732619475778,-588.71758215,0.00029551,7]
[343410767,1732619475788,-351.078838,0.00029551,7]
[343410768,1732619475798,-351.078838,0.00029551,7]
[343410769,1732619475808,-151.0,0.00029552,7]
[343410770,1732619475817,-198.440694,0.00029552,7]
[343410771,1732619475826,-151.0,0.00029552,7]
[343410772,1732619475835,-151.0,0.00029552,7]
[343410773,1732619475844,-151.0,0.00029552,7]
[343410774,1732619475854,-278.018208,0.00029552,7]
[343410775,1732619475863,-542.00922101,0.00029552,2]
[343410776,1732619475872,-151.0,0.00029552,7]
[343410777,1732619475882,-500.0,0.00029552,10]
[343410778,1732619475892,-200.74691421,0.00029552,10]
[343410779,1732619475901,-153.56899394,0.00029552,10]
[343410780,1732619475914,-150.09,0.00029552,10]
[343410781,1732619475924,-299.5,0.00029552,10]
[343410782,1732619475933,-150.14,0.00029552,2]
[343410783,1732619475942,-500.0,0.00029552,10]
[343410784,1732619475952,-500.0,0.00029552,10]
[343410785,1732619475962,-500.0,0.00029552,10]
[343410786,1732619475973,-150.09,0.00029552,2]
[343410787,1732619475982,-299.5,0.00029552,10]
[343410788,1732619475992,-151.62597548,0.00029552,10]
[343410789,1732619476002,-10000.0,0.00029559,2]
[343410790,1732619476012,-151.0,0.00029576,7]
[343410791,1732619476021,-151.0,0.00029576,7]
[343410792,1732619476030,-151.0,0.00029576,7]
[343410793,1732619476039,-151.0,0.00029576,7]
[343410794,1732619476048,-151.0,0.00029576,7]
[343410795,1732619476058,-151.0,0.00029576,7]
[343410796,1732619476067,-151.0,0.00029576,7]
[343410797,1732619476076,-151.0,0.00029576,7]
[343410798,1732619476086,-151.0,0.00029576,7]
[343410799,1732619476095,-151.0,0.00029576,7]
[343410800,1732619476105,-151.0,0.00029576,7]
[343410801,1732619476118,-162.548047,0.00029576,7]
[343410802,1732619476131,-248.386221,0.00029576,7]
[343410803,1732619476141,-248.386221,0.00029576,7]
[343410804,1732619476150,-248.386221,0.00029576,7]
[343410805,1732619476160,-248.386221,0.00029576,7]
[343410806,1732619476169,-248.386221,0.00029576,7]
[343410807,1732619476179,-248.386221,0.00029576,7]
[343410808,1732619476188,-248.386221,0.00029576,7]
[343410809,1732619476197,-248.386221,0.00029576,7]
[343410810,1732619476206,-248.386221,0.00029576,7]
[343410811,1732619476216,-248.386221,0.00029576,7]
[343410812,1732619476230,-248.386221,0.00029576,7]
[343410813,1732619476242,-248.386221,0.00029576,7]
[343410814,1732619476251,-248.386221,0.00029576,7]
[343410815,1732619476260,-248.386221,0.00029576,7]
[343410816,1732619476268,-248.386221,0.00029576,7]
[343410817,1732619476277,-248.386221,0.00029576,7]
[343410818,1732619476286,-151.0,0.00029576,7]
[343410819,1732619476295,-151.0,0.00029576,7]
[343410820,1732619476304,-152.840531,0.00029576,7]
[343410821,1732619476312,-151.0,0.00029576,7]
[343410822,1732619476321,-151.0,0.00029576,7]
[343410823,1732619476330,-5225.00606838,0.00029599,2]
[343410824,1732619476338,-1224.26141221,0.00029599,2]
[343410825,1732619476348,-150.0,0.000296,2]
[343410826,1732619476357,-105159.54023812,0.0002961,2]
[343410827,1732619476367,-404.584677,0.0002961,7]
[343410828,1732619476376,-404.584677,0.0002961,7]
[343410829,1732619476386,-151.0,0.0002961,7]
[343410830,1732619476395,-2052.182151,0.0002961,7]
[343410831,1732619476404,-2052.182151,0.0002961,7]
[343410832,1732619476413,-151.0,0.0002961,7]
[343410833,1732619476422,-151.0,0.0002961,7]
[343410834,1732619476431,-184.036408,0.0002961,7]
[343410835,1732619476441,-184.036408,0.0002961,7]
[343410836,1732619476450,-303.664228,0.0002961,7]
[343410837,1732619476459,-303.664228,0.0002961,7]
[343410838,1732619476468,-314.942466,0.0002961,7]
[343410839,1732619476484,-314.942466,0.0002961,7]
[343410840,1732619476493,-451.177031,0.0002961,7]
[343410841,1732619476503,-451.177031,0.0002961,7]
[343410842,1732619476512,-1141.145451,0.0002961,7]
[343410843,1732619476521,-1141.145451,0.0002961,7]
[343410844,1732619476531,-151.0,0.0002961,7]
[343410845,1732619476540,-332.523014,0.0002961,7]
[343410846,1732619476550,-332.523014,0.0002961,7]
[343410847,1732619476559,-151.0,0.0002961,7]
[343410848,1732619476568,-2196.261732,0.0002961,7]
[343410849,1732619476577,-230.507921,0.0002961,7]
[343410850,1732619476587,-2196.261732,0.0002961,7]
[343410851,1732619476596,-230.507921,0.0002961,7]
[343410852,1732619476605,-186.046187,0.0002961,7]
[343410853,1732619476614,-186.046187,0.0002961,7]
[343410854,1732619476623,-214.335249,0.00029611,7]
[343410855,1732619476632,-214.335249,0.00029611,7]
[343410856,1732619476641,-214.335249,0.00029611,7]
[343410857,1732619476650,-214.335249,0.00029611,7]
[343410858,1732619476659,-214.335249,0.00029611,7]
[343410859,1732619476669,-214.335249,0.00029611,7]
[343410860,1732619476678,-214.335249,0.00029611,7]
[343410861,1732619476687,-214.335249,0.00029611,7]
[343410862,1732619476696,-214.335249,0.00029611,7]
[343410863,1732619476705,-214.335249,0.00029611,7]
[343410864,1732619476714,-214.335249,0.00029611,7]
[343410865,1732619476726,-214.335249,0.00029611,7]
[343410866,1732619476735,-214.335249,0.00029611,7]
[343410867,1732619476744,-214.33525,0.00029611,7]
[343410868,1732619476753,-151.0,0.00029611,7]
[343410869,1732619476763,-151.0,0.00029611,7]
[343410870,1732619476772,-151.0,0.00029611,7]
[343410871,1732619476782,-151.0,0.00029611,7]
[343410872,1732619476792,-1225.343285,0.00029611,7]
[343410873,1732619476801,-1225.343285,0.00029611,7]
[343410874,1732619476810,-1225.343285,0.00029611,7]
[343410875,1732619476824,-1225.343285,0.00029611,7]
[343410876,1732619476833,-1225.343285,0.00029611,7]
[343410877,1732619476843,-1225.343285,0.00029611,7]
[343410878,1732619476852,-1225.343285,0.00029611,7]
[343410879,1732619476862,-151.0,0.00029611,7]
[343410880,1732619476871,-301.357144,0.00029611,7]
[343410881,1732619476880,-1225.343285,0.00029611,7]
[343410882,1732619476890,-1225.343285,0.00029611,7]
[343410883,1732619476899,-1225.343285,0.00029611,7]
[343410884,1732619476909,-1225.343285,0.00029611,7]
[343410885,1732619476924,-1225.343285,0.00029611,7]
[343410886,1732619476941,-1225.343285,0.00029611,7]
[343410887,1732619476951,-1225.343279,0.00029611,7]
[343410888,1732619476961,-219.93629,0.00029611,7]
[343410889,1732619476971,-219.93629,0.00029611,7]
[343410890,1732619476987,-219.93629,0.00029611,7]
[343410891,1732619476997,-219.93629,0.00029611,7]
[343410892,1732619477007,-219.93629,0.00029611,7]
[343410893,1732619477017,-219.93629,0.00029611,7]
[343410894,1732619477026,-219.93629,0.00029611,7]
[343410895,1732619477036,-219.936299,0.00029611,7]
[343410896,1732619477046,-618.2308,0.00029611,7]
[343410897,1732619477055,-618.2308,0.00029611,7]
[343410898,1732619477064,-618.2308,0.00029611,7]
[343410899,1732619477073,-618.2308,0.00029611,7]
[343410900,1732619477085,-618.2308,0.00029611,7]
[343410901,1732619477095,-618.2308,0.00029611,7]
[343410902,1732619477105,-618.2308,0.00029611,7]
[343410903,1732619477115,-618.2308,0.00029611,7]
[343410904,1732619477124,-618.2308,0.00029611,7]
[343410905,1732619477135,-618.2308,0.00029611,7]
[343410906,1732619477144,-618.2308,0.00029611,7]
[343410907,1732619477155,-618.2308,0.00029611,7]
[343410908,1732619477165,-618.2308,0.00029611,7]
[343410909,1732619477175,-618.2308,0.00029611,7]
[343410910,1732619477185,-618.2308,0.00029611,7]
[343410911,1732619477195,-618.230801,0.00029611,7]
[343410912,1732619477204,-152.4103102,0.00029616,30]
[343410913,1732619477214,-212.7894965,0.00029616,30]
[343410914,1732619477229,-212.4227433,0.00029616,30]
[343410915,1732619477239,-151.0,0.00029618,7]
[343410916,1732619477248,-151.0,0.00029618,7]
[343410917,1732619477258,-151.0,0.00029618,7]
[343410918,1732619477267,-151.0,0.00029618,7]
[343410919,1732619477277,-151.0,0.00029618,7]
[343410920,1732619477286,-151.0,0.00029618,7]
[343410921,1732619477296,-151.0,0.00029618,7]
[343410922,1732619477306,-151.0,0.00029618,7]
[343410923,1732619477315,-155.702034,0.00029618,7]
[343410924,1732619477325,-151.0,0.00029618,7]
[343410925,1732619477334,-151.0,0.00029618,7]
[343410926,1732619477345,-151.0,0.00029618,7]
[343410927,1732619477438,-151.0,0.00029618,7]
[343410928,1732619477449,-151.0,0.00029618,7]
[343410929,1732619477459,-151.0,0.00029618,7]
[343410930,1732619477468,-151.0,0.00029618,7]
[343410931,1732619477486,-151.0,0.00029618,7]
[343410932,1732619477495,-151.0,0.00029618,7]
[343410933,1732619477505,-161.850582,0.00029618,7]
[343410934,1732619477515,-404.584677,0.00029618,7]
[343410935,1732619477525,-404.584677,0.00029618,7]
[343410936,1732619477535,-404.584677,0.00029618,7]
[343410937,1732619477544,-404.584677,0.00029618,7]
[343410938,1732619477554,-404.584677,0.00029618,7]
[343410939,1732619477564,-404.584677,0.00029618,7]
[343410940,1732619477574,-404.584677,0.00029618,7]
[343410941,1732619477583,-404.584677,0.00029618,7]
[343410942,1732619477593,-404.584677,0.00029618,7]
[343410943,1732619477601,-404.584677,0.00029618,7]
[343410944,1732619477611,-404.584677,0.00029618,7]
[343410945,1732619477621,-404.584677,0.00029618,7]
[343410946,1732619477630,-404.584677,0.00029618,7]
[343410947,1732619477639,-404.584682,0.00029618,7]
[343410948,1732619477649,-151.0,0.00029618,7]
[343410949,1732619477658,-151.0,0.00029618,7]
[343410950,1732619477668,-151.0,0.00029618,7]
[343410951,1732619477677,-151.0,0.00029618,7]
[343410952,1732619477687,-151.0,0.00029618,7]
[343410953,1732619477696,-151.0,0.00029618,7]
[343410954,1732619477706,-151.0,0.00029618,7]
[343410955,1732619477715,-2052.182151,0.00029618,7]
[343410956,1732619477732,-2052.182151,0.00029618,7]
[343410957,1732619477741,-2052.182151,0.00029618,7]
[343410958,1732619477750,-2052.182151,0.00029618,7]
[343410959,1732619477759,-2052.182151,0.00029618,7]
[343410960,1732619477769,-2052.182151,0.00029618,7]
[343410961,1732619477778,-2052.182151,0.00029618,7]
[343410962,1732619477787,-2052.182151,0.00029618,7]
[343410963,1732619477796,-2052.182151,0.00029618,7]
[343410964,1732619477805,-2052.182151,0.00029618,7]
[343410965,1732619477815,-2052.182151,0.00029618,7]
[343410966,1732619477826,-2052.182151,0.00029618,7]
[343410967,1732619477837,-2052.182151,0.00029618,7]
[343410968,1732619477848,-151.0,0.00029618,7]
[343410969,1732619477860,-2052.182145,0.00029618,7]
[343410970,1732619477872,-151.0,0.00029618,7]
[343410971,1732619477882,-151.0,0.00029618,7]
[343410972,1732619477891,-151.0,0.00029618,7]
[343410973,1732619477901,-151.0,0.00029618,7]
[343410974,1732619477915,-151.0,0.00029618,7]
[343410975,1732619477927,-151.0,0.00029618,7]
[343410976,1732619477936,-151.0,0.00029618,7]
[343410977,1732619477945,-206.498046,0.00029618,7]
[343410978,1732619477955,-184.036408,0.00029618,7]
[343410979,1732619477965,-184.036408,0.00029618,7]
[343410980,1732619477981,-184.036408,0.00029618,7]
[343410981,1732619477991,-184.036408,0.00029618,7]
[343410982,1732619478001,-184.036408,0.00029618,7]
[343410983,1732619478011,-184.036408,0.00029618,7]
[343410984,1732619478021,-184.036408,0.00029618,7]
[343410985,1732619478031,-184.036408,0.00029618,7]
[343410986,1732619478040,-184.036408,0.00029618,7]
[343410987,1732619478050,-184.036408,0.00029618,7]
[343410988,1732619478060,-184.036408,0.00029618,7]
[343410989,1732619478071,-184.036408,0.00029618,7]
[343410990,1732619478080,-184.036408,0.00029618,7]
[343410991,1732619478091,-184.036405,0.00029618,7]
[343410992,1732619478100,-303.664228,0.00029618,7]
[343410993,1732619478110,-303.664228,0.00029618,7]
[343410994,1732619478120,-303.664228,0.00029618,7]
[343410995,1732619478130,-303.664228,0.00029618,7]
[343410996,1732619478139,-303.664228,0.00029618,7]
[343410997,1732619478149,-303.664228,0.00029618,7]
[343410998,1732619478159,-303.664228,0.00029618,7]
[343410999,1732619478168,-303.664228,0.00029618,7]
[343411000,1732619478177,-303.664228,0.00029618,7]
[343411001,1732619478187,-303.664228,0.00029618,7]
[343411002,1732619478196,-303.664228,0.00029618,7]
[343411003,1732619478206,-303.664228,0.00029618,7]
[343411004,1732619478216,-303.664228,0.00029618,7]
[343411005,1732619478232,-303.664227,0.00029618,7]
[343411006,1732619478242,-314.942466,0.00029618,7]
[343411007,1732619478252,-314.942466,0.00029618,7]
[343411008,1732619478261,-314.942466,0.00029618,7]
[343411009,1732619478271,-314.942466,0.00029618,7]
[343411010,1732619478280,-314.942466,0.00029618,7]
[343411011,1732619478289,-314.942466,0.00029618,7]
[343411012,1732619478298,-314.942466,0.00029618,7]
[343411013,1732619478306,-314.942466,0.00029618,7]
[343411014,1732619478315,-314.942466,0.00029618,7]
[343411015,1732619478325,-314.942466,0.00029618,7]
[343411016,1732619478334,-314.942466,0.00029618,7]
[343411017,1732619478343,-314.942466,0.00029618,7]
[343411018,1732619478352,-314.942466,0.00029618,7]
[343411019,1732619478362,-314.942462,0.00029618,7]
[343411020,1732619478371,-451.177031,0.00029618,7]
[343411021,1732619478380,-451.177031,0.00029618,7]
[343411022,1732619478389,-451.177031,0.00029618,7]
[343411023,1732619478398,-451.177031,0.00029618,7]
[343411024,1732619478407,-451.177031,0.00029618,7]
[343411025,1732619478416,-451.177031,0.00029618,7]
[343411026,1732619478426,-451.177031,0.00029618,7]
[343411027,1732619478435,-451.177031,0.00029618,7]
[343411028,1732619478445,-451.177031,0.00029618,7]
[343411029,1732619478454,-451.177031,0.00029618,7]
[343411030,1732619478463,-451.177031,0.00029618,7]
[343411031,1732619478476,-451.177031,0.00029618,7]
[343411032,1732619478485,-451.177031,0.00029618,7]
[343411033,1732619478495,-451.177029,0.00029618,7]
[343411034,1732619478504,-1141.145451,0.00029618,7]
[343411035,1732619478513,-1141.145451,0.00029618,7]
[343411036,1732619478522,-1141.145451,0.00029618,7]
[343411037,1732619478531,-1141.145451,0.00029618,7]
[343411038,1732619478541,-1141.145451,0.00029618,7]
[343411039,1732619478550,-813.59116023,0.00029618,7]
[343411040,1732619478566,-327.55429077,0.00029618,7]
[343411041,1732619478576,-1141.145451,0.00029618,7]
[343411042,1732619478586,-1141.145451,0.00029618,7]
[343411043,1732619478595,-705.15480723,0.00029618,7]
[343411044,1732619478607,-435.99064377,0.00029618,7]
[343411045,1732619478617,-854.41726557,0.00029618,7]
[343411082,1732620156228,165.563939,0.00013973,2]
[343411086,1732620311339,235.7522136,0.00022,2]
[343411112,1732620427127,-183.4748385,0.00022018,2]
[343411113,1732620427150,-352.63577281,0.00022507,2]
[343411114,1732620427174,-164.891211,0.00022607,2]
[343411115,1732620427204,-164.556448,0.00022708,2]
[343411116,1732620427227,-846.931659,0.00022881,2]
[343411117,1732620427250,-2467.43748356,0.00022995,2]
[343411118,1732620427293,-513.44767788,0.00022995,2]
[343411120,1732620430109,-537.67518764,0.00022995,2]
[343411136,1732620513139,3966.19608858,0.0002,2]
[343411142,1732620553086,-564.621106,0.0002237,2]
[343411143,1732620553109,-1886.8627497,0.00022431,2]
[343411195,1732620636742,-919.723513,0.00022297,2]
[343411196,1732620636752,-123.0757369,0.00022431,2]
[343411197,1732620636762,-1091.26399572,0.00022995,2]
[343411198,1732620636781,-160.0,0.00023,2]
[343411199,1732620636790,-150.0,0.00023,5]
[343411200,1732620636800,-564.621106,0.00023055,2]
[343411201,1732620636810,-969.7112832,0.00023064,2]
[343411202,1732620636819,-281.74182478,0.000232,2]
[343411203,1732620636828,-300.0,0.00023223,2]
[343411204,1732620636838,-5845.8205737,0.00023224,2]
[343411205,1732620636847,-300.0,0.00023418,2]
[343411206,1732620636856,-24900.0,0.00023722,2]
[343411207,1732620636866,-564.621106,0.0002374,2]
[343411208,1732620636878,-1089.45547124,0.00023753,2]
[343411209,1732620636887,-379.0968005,0.00023763,2]
[343411210,1732620636897,-2187.58185201,0.00023763,2]
[343411211,1732620636907,-3947.2185686,0.00024821,2]
[343411212,1732620636916,-382.842,0.00024821,8]
[343411213,1732620636925,-177.83227327,0.000249,2]
[343411214,1732620636935,-500.0,0.00024973,2]
[343411215,1732620636944,-650.16,0.00024989,3]
[343411216,1732620636954,-325.08,0.00024989,3]
[343411217,1732620636963,-162.54,0.00024989,3]
[343411218,1732620636972,-487.67,0.00024989,3]
[343411219,1732620636981,-2183.81,0.00024989,10]
[343411220,1732620636990,-1819.84,0.00024989,10]
[343411221,1732620636999,-349.32602875,0.00024999,2]
[343411222,1732620637009,-375.4938716,0.00024999,2]
[343411223,1732620637024,-373.76458251,0.00024999,2]
[343411224,1732620637033,-500.0,0.00024999,2]
[343411225,1732620637042,-500.0,0.00024999,2]
[343411226,1732620637050,-201.94216695,0.00024999,2]
[343411227,1732620637058,-500.0,0.00024999,2]
[343411228,1732620637067,-500.0,0.00024999,2]
[343411229,1732620637076,-500.0,0.00024999,2]
[343411230,1732620637087,-191.24842212,0.00024999,2]
[343411231,1732620637096,-500.0,0.00024999,2]
[343411232,1732620637106,-500.0,0.00024999,2]
[343411233,1732620637115,-500.0,0.00024999,2]
[343411234,1732620637125,-500.0,0.00024999,2]
[343411235,1732620637134,-319.03414082,0.00024999,2]
[343411236,1732620637144,-500.0,0.00024999,2]
[343411237,1732620637153,-500.0,0.00024999,2]
[343411238,1732620637162,-500.0,0.00024999,2]
[343411239,1732620637171,-301.4101984,0.00024999,2]
[343411240,1732620637180,-500.0,0.00024999,2]
[343411241,1732620637189,-500.0,0.00024999,2]
[343411242,1732620637198,-500.0,0.00024999,2]
[343411243,1732620637207,-500.0,0.00024999,2]
[343411244,1732620637216,-500.0,0.00024999,2]
[343411245,1732620637226,-295.75262717,0.00024999,2]
[343411246,1732620637235,-500.0,0.00024999,2]
[343411247,1732620637244,-500.0,0.00024999,2]
[343411248,1732620637253,-500.0,0.00024999,2]
[343411249,1732620637263,-500.0,0.00024999,2]
[343411250,1732620637276,-500.0,0.00024999,2]
[343411251,1732620637286,-500.0,0.00024999,2]
[343411252,1732620637295,-500.0,0.00024999,2]
[343411253,1732620637304,-500.0,0.00024999,2]
[343411254,1732620637315,-268.40288633,0.00024999,2]
[343411255,1732620637330,-231.59711367,0.00024999,2]
[343411256,1732620637341,-580.60339704,0.00024999,2]
[343411257,1732620637351,-500.0,0.00024999,2]
[343411259,1732620637360,-500.0,0.00024999,2]
[343411260,1732620637369,-500.0,0.00024999,2]
[343411261,1732620637378,-500.0,0.00024999,2]
[343411262,1732620637387,-500.0,0.00024999,2]
[343411263,1732620637398,-81.50045325,0.00024999,2]
[343411264,1732620637411,-418.49954675,0.00024999,2]
[343411265,1732620637421,-152.10764195,0.00024999,2]
[343411266,1732620637440,-347.89235805,0.00024999,2]
[343411267,1732620637450,-500.0,0.00024999,2]
[343411268,1732620637459,-500.0,0.00024999,2]
[343411269,1732620637468,-500.0,0.00024999,2]
[343411270,1732620637478,-500.0,0.00024999,2]
[343411271,1732620637487,-500.0,0.00024999,2]
[343411272,1732620637496,-500.0,0.00024999,2]
[343411273,1732620637506,-500.0,0.00024999,2]
[343411275,1732620637518,-500.0,0.00024999,2]
[343411276,1732620637528,-500.0,0.00024999,2]
[343411277,1732620637537,-500.0,0.00024999,2]
[343411278,1732620637547,-500.0,0.00024999,2]
[343411279,1732620637556,-500.0,0.00024999,2]
[343411280,1732620637565,-500.0,0.00024999,2]
[343411281,1732620637575,-228.52061396,0.00024999,2]
[343411282,1732620637584,-500.0,0.00024999,2]
[343411283,1732620637594,-500.0,0.00024999,2]
[343411284,1732620637603,-500.0,0.00024999,2]